bitfinex/quotes_SOLUSD_20240530
["timestamp","ask_amount","ask_price","bid_price","bid_amount"]
[1717084898738,2.1945,168.6,168.59,60.0]
[1717084900742,2.1942,168.62,168.61,60.0]
[1717084902462,2.1944,168.61,168.59,60.0]
[1717084903852,4.388,168.64,168.62,60.0]
[1717084904237,2.1941,168.63,168.62,60.0]
[1717084905033,4.388,168.64,168.56,2.195]
[1717084905034,4.388,168.64,168.59,60.0]
[1717084905235,2.1948,168.58,168.57,60.0]
[1717084905560,2.1948,168.58,168.57,105.0]
[1717084906666,2.1947,168.59,168.57,105.0]
[1717084907164,2.1948,168.58,168.57,60.0]
[1717084907935,4.3888,168.61,168.53,2.1953]
[1717084908160,2.1954,168.53,168.52,60.8234774]
[1717084908344,2.1954,168.53,168.52,0.8234774]
[1717084910560,6.5863,168.53,168.52,0.8234774]
[1717084910969,2.1954,168.53,168.52,0.8234774]
[1717084912847,33.6081,168.53,168.52,0.8234774]
[1717084913841,40.1944,168.53,168.52,0.8234774]
[1717084914763,21.9544,168.53,168.52,0.8234774]
[1717084915141,15.3681,168.53,168.52,0.8234774]
[1717084915341,6.5863,168.53,168.52,0.8234774]
[1717084916575,13.1726,168.53,168.52,0.8234774]
[1717084917659,21.9544,168.53,168.52,0.8234774]
[1717084920444,15.3681,168.53,168.52,0.8234774]
[1717084920645,2.1954,168.53,168.52,60.8234774]
[1717084920870,2.1954,168.53,168.52,0.8234774]
[1717084921283,21.9544,168.53,168.52,0.8234774]
[1717084923248,2.1954,168.53,168.52,0.8234774]
[1717084924658,2.1954,168.53,168.52,60.8234774]
[1717084928884,2.195,168.57,168.55,60.0]
[1717084929175,0.27030869,168.6,168.58,60.0]
[1717084929176,2.1946,168.59,168.58,60.0]
[1717084929568,2.1945,168.6,168.58,60.0]
[1717084930256,10.9692,168.66,168.62,60.0]
[1717084930575,4.3878,168.65,168.6,60.0]
[1717084930752,2.1944,168.61,168.6,60.0]
[1717084930956,2.1946,168.6,168.58,60.0]
[1717084931182,2.1946,168.59,168.58,60.0]
[1717084931351,18.24,168.65,168.56,60.0]
[1717084931547,4.389,168.61,168.56,60.0]
[1717084931751,4.3883,168.63,168.58,60.0]
[1717084931952,2.1944,168.61,168.6,60.0]
[1717084932186,2.1942,168.62,168.6,60.0]
[1717084933765,2.194,168.64,168.63,60.0]
[1717084934772,2.194,168.64,168.61,60.0]
[1717084934980,2.194,168.64,168.59,17.86]
[1717084934981,2.1945,168.61,168.59,60.0]
[1717084935476,18.24,168.65,168.57,60.0]
[1717084935666,18.24,168.65,168.52,0.8234774]
[1717084935667,2.1946,168.6,168.59,60.0]
[1717084936760,2.1948,168.58,168.57,60.0]
[1717084936956,2.1947,168.59,168.57,105.0]
[1717084937171,4.3885,168.62,168.57,105.0]
[1717084937487,2.1947,168.59,168.57,105.0]
[1717084937869,2.1945,168.6,168.59,60.0]
[1717084938074,2.194,168.64,168.63,60.0]
[1717084938585,2.1942,168.62,168.61,60.0]
[1717084941101,2.1945,168.6,168.59,60.0]
[1717084941891,2.1946,168.59,168.57,105.0]
[1717084942065,2.1946,168.59,168.58,45.0]
[1717084942883,2.1946,168.59,168.57,60.0]
[1717084943089,2.1948,168.58,168.57,60.0]
[1717084943388,2.1947,168.59,168.57,60.0]
[1717084943604,2.1945,168.6,168.57,60.0]
[1717084944267,2.1945,168.6,168.59,60.0]
[1717084944974,2.1944,168.61,168.59,60.0]
[1717084945182,2.1944,168.61,168.59,105.0]
[1717084945590,2.1943,168.62,168.61,60.0]
[1717084946100,4.3876,168.66,168.64,60.0]
[1717084946262,2.1938,168.65,168.64,60.0]
[1717084947215,2.1941,168.64,168.62,60.0]
[1717084947372,2.1941,168.64,168.63,45.0]
[1717084947995,2.1939,168.65,168.63,45.0]
[1717084948180,2.1939,168.65,168.64,60.0]
[1717084952786,2.194,168.64,168.63,45.0]
[1717084952987,2.1941,168.63,168.62,60.0]
[1717084955601,2.194,168.65,168.64,60.0]
[1717084956977,2.1935,168.68,168.67,60.0]
[1717084962501,2.1935,168.68,168.67,105.0]
[1717084966298,4.386,168.72,168.7,60.0]
[1717084966505,2.1931,168.71,168.7,60.0]
[1717084966704,2.1931,168.71,168.7,105.0]
[1717084966890,4.3855,168.74,168.7,105.0]
[1717084966891,2.1927,168.74,168.73,60.0]
[1717084967314,8.2727,168.74,168.73,60.0]
[1717084967608,2.1927,168.74,168.73,60.0]
[1717084967986,8.2727,168.74,168.73,60.0]
[1717084968488,2.1927,168.74,168.73,60.0]
[1717084971309,2.1924,168.76,168.75,60.0]
[1717084980522,2.1923,168.78,168.77,60.0]
[1717084982512,2.1926,168.75,168.73,60.0]
[1717084983123,2.1925,168.76,168.75,60.0]
[1717084984534,18.23,168.8,168.7,60.0]
[1717084984723,2.1929,168.73,168.7,60.0]
[1717084985027,2.193,168.72,168.7,60.0]
[1717084985627,2.1929,168.73,168.7,60.0]
[1717084985817,2.1929,168.73,168.71,45.0]
[1717084986127,2.1927,168.74,168.71,45.0]
[1717084986721,2.1928,168.73,168.71,45.0]
[1717084987317,29.192,168.77,168.74,60.0]
[1717084987517,2.1926,168.75,168.74,60.0]
[1717084987717,2.1925,168.76,168.74,60.0]
[1717084988231,2.1923,168.77,168.76,60.0]
[1717084989011,2.1921,168.79,168.78,60.0]
[1717084989640,2.1919,168.8,168.78,60.0]
[1717084990025,2.1918,168.81,168.78,60.0]
[1717084990230,2.1919,168.8,168.78,60.0]
[1717084990417,6.07,168.79,168.78,60.0]
[1717084991013,2.1919,168.8,168.78,60.0]
[1717084992245,4.3831,168.83,168.81,60.0]
[1717084992413,6.07,168.82,168.81,60.0]
[1717084993537,8.2616,168.82,168.81,60.0]
[1717084995134,2.1919,168.8,168.79,60.0]
[1717084995309,8.2619,168.8,168.79,60.0]
[1717084996940,2.1921,168.79,168.77,60.0]
[1717084997243,8.2621,168.79,168.77,60.0]
[1717084997624,2.1922,168.78,168.77,60.0]
[1717084997936,8.2622,168.78,168.77,60.0]
[1717084998139,6.07,168.78,168.77,60.0]
[1717084998344,6.07,168.79,168.78,60.0]
[1717084998547,8.262,168.79,168.78,60.0]
[1717085000527,8.262,168.79,168.76,105.0]
[1717085000836,8.2622,168.78,168.76,105.0]
[1717085001242,6.07,168.78,168.76,105.0]
[1717085001634,8.2623,168.77,168.74,60.0]
[1717085001943,6.07,168.75,168.74,60.0]
[1717085002317,8.2625,168.75,168.74,60.0]
[1717085002622,8.2625,168.75,168.68,10.4569]
[1717085002623,6.07,168.75,168.69,60.0]
[1717085002829,8.2633,168.7,168.66,60.0]
[1717085003140,6.07,168.69,168.68,60.0]
[1717085004345,2.1933,168.7,168.65,20.0538]
[1717085004845,2.1934,168.69,168.67,60.0]
[1717085005040,2.1934,168.69,168.65,60.0]
[1717085005727,6.5787,168.73,168.7,60.0]
[1717085005925,2.1932,168.7,168.68,60.0]
[1717085006537,2.1933,168.69,168.66,60.0]
[1717085006729,2.1933,168.69,168.67,45.0]
[1717085007142,2.1935,168.68,168.67,45.0]
[1717085007356,2.1935,168.68,168.66,60.0]
[1717085008044,2.1935,168.68,168.65,60.0]
[1717085008243,2.1935,168.68,168.66,45.0]
[1717085008634,2.1936,168.67,168.65,60.0]
[1717085010046,2.1932,168.71,168.7,60.0]
[1717085010452,2.1932,168.71,168.66,65.0536]
[1717085010453,10.9614,168.78,168.72,60.0]
[1717085010750,4.3846,168.77,168.72,60.0]
[1717085010947,2.1928,168.74,168.72,60.0]
[1717085011340,2.1929,168.72,168.7,60.0]
[1717085011854,2.1929,168.73,168.7,60.0]
[1717085012235,2.193,168.72,168.7,60.0]
[1717085012782,2.1928,168.73,168.7,60.0]
[1717085013450,2.1928,168.73,168.72,60.0]
[1717085014132,2.1925,168.75,168.74,60.0]
[1717085019459,4.3839,168.8,168.77,60.0]
[1717085019643,2.1922,168.78,168.77,60.0]
[1717085019844,2.1921,168.79,168.77,60.0]
[1717085020536,2.1922,168.78,168.77,60.0]
[1717085022852,2.1921,168.79,168.77,60.0]
[1717085023259,2.1922,168.78,168.77,60.0]
[1717085024361,8.2622,168.78,168.77,60.0]
[1717085025064,6.07,168.78,168.77,60.0]
[1717085027659,6.07,168.78,168.74,60.0]
[1717085027959,6.07,168.75,168.74,60.0]
[1717085029450,2.1925,168.76,168.74,60.0]
[1717085029764,6.07,168.75,168.74,60.0]
[1717085030335,2.1923,168.77,168.76,60.0]
[1717085030534,8.2623,168.77,168.76,60.0]
[1717085031159,2.1925,168.76,168.74,60.0]
[1717085031357,8.2625,168.75,168.74,60.0]
[1717085033250,6.07,168.75,168.74,60.0]
[1717085037571,6.07,168.75,168.71,60.0]
[1717085037864,4.3846,168.78,168.71,60.0]
[1717085037865,6.07,168.72,168.71,60.0]
[1717085038752,6.07,168.72,168.7,60.0]
[1717085038958,6.07,168.71,168.7,60.0]
[1717085039272,2.1929,168.73,168.7,60.0]
[1717085039455,6.07,168.72,168.7,60.0]
[1717085039857,8.2629,168.72,168.7,60.0]
[1717085040345,6.07,168.71,168.7,60.0]
[1717085040767,2.1929,168.73,168.7,60.0]
[1717085040955,6.07,168.72,168.7,60.0]
[1717085041169,2.1929,168.73,168.72,60.0]
[1717085041364,6.07,168.73,168.72,60.0]
[1717085041770,8.2628,168.73,168.72,60.0]
[1717085043879,4.3844,168.78,168.76,60.0]
[1717085044175,24.28,168.8,168.76,60.0]
[1717085044176,8.2623,168.77,168.76,60.0]
[1717085044778,6.07,168.77,168.76,60.0]
[1717085044975,8.2623,168.77,168.76,60.0]
[1717085045361,6.07,168.77,168.76,60.0]
[1717085046355,8.2623,168.77,168.76,60.0]
[1717085048253,8.2623,168.77,168.74,60.0]
[1717085048683,6.07,168.75,168.74,60.0]
[1717085048858,2.1923,168.77,168.74,60.0]
[1717085049670,2.1924,168.76,168.74,60.0]
[1717085049869,6.07,168.75,168.72,60.0]
[1717085050172,6.07,168.73,168.72,60.0]
[1717085050372,8.2628,168.73,168.72,60.0]
[1717085050588,6.07,168.73,168.7,60.0]
[1717085050749,6.07,168.71,168.7,60.0]
[1717085051890,6.07,168.72,168.7,60.0]
[1717085052955,2.1927,168.74,168.72,60.0]
[1717085053150,6.577,168.77,168.7,60.0]
[1717085053356,6.07,168.72,168.7,60.0]
[1717085057382,4.3842,168.79,168.74,60.0]
[1717085057574,33.0481,168.8,168.77,60.0]
[1717085057762,4.3837,168.81,168.77,60.0]
[1717085057763,2.1922,168.78,168.77,60.0]
[1717085057959,6.07,168.78,168.77,60.0]
[1717085058361,8.2622,168.78,168.77,60.0]
[1717085058755,8.7666,168.83,168.73,2.1927]
[1717085058756,2.1919,168.8,168.79,60.0]
[1717085059060,8.2619,168.8,168.79,60.0]
[1717085059783,2.192,168.79,168.77,60.0]
[1717085060161,2.1919,168.8,168.79,60.0]
[1717085060485,2.1917,168.82,168.79,60.0]
[1717085060653,6.07,168.8,168.79,60.0]
[1717085061074,2.1917,168.82,168.79,60.0]
[1717085061278,6.07,168.8,168.79,60.0]
[1717085061883,8.2619,168.8,168.79,60.0]
[1717085062370,6.07,168.8,168.79,60.0]
[1717085063880,13.1472,168.86,168.81,60.0]
[1717085064083,2.1914,168.84,168.83,60.0]
[1717085064393,8.2614,168.84,168.83,60.0]
[1717085065662,6.07,168.84,168.81,60.0]
[1717085065876,6.07,168.82,168.81,60.0]
[1717085066298,2.1915,168.83,168.81,60.0]
[1717085066614,6.07,168.82,168.81,60.0]
[1717085067110,2.1914,168.84,168.81,60.0]
[1717085067404,6.07,168.82,168.81,60.0]
[1717085073815,6.07,168.82,168.79,60.0]
[1717085073992,6.07,168.8,168.79,60.0]
[1717085074192,6.07,168.8,168.77,60.0]
[1717085074193,8.262,168.8,168.77,60.0]
[1717085074701,6.07,168.78,168.77,60.0]
[1717085077694,6.07,168.78,168.75,60.0]
[1717085078023,6.07,168.76,168.75,60.0]
[1717085079416,2.192,168.79,168.75,60.0]
[1717085079617,6.07,168.76,168.75,60.0]
[1717085080691,6.07,168.76,168.73,60.0]
[1717085080891,6.07,168.74,168.73,60.0]
[1717085081312,6.07,168.74,168.73,62.1928]
[1717085082329,6.07,168.74,168.73,60.0]
[1717085082502,6.07,168.74,168.73,62.1928]
[1717085084324,6.07,168.74,168.73,2.1928]
[1717085084530,6.07,168.74,168.72,2.1929]
[1717085084703,6.07,168.74,168.73,60.0]
[1717085085328,6.07,168.75,168.73,62.1928]
[1717085085633,6.07,168.75,168.73,80.0528]
[1717085086136,6.07,168.76,168.75,60.0]
[1717085086829,2.1922,168.78,168.77,60.0]
[1717085087005,8.2622,168.78,168.77,60.0]
[1717085089010,2.1922,168.78,168.77,60.0]
[1717085089210,8.2622,168.78,168.77,60.0]
[1717085090232,8.2619,168.8,168.79,60.0]
[1717085090530,14.3319,168.8,168.79,60.0]
[1717085093736,2.1919,168.81,168.79,60.0]
[1717085093909,6.07,168.8,168.79,60.0]
[1717085094412,2.1917,168.82,168.81,60.0]
[1717085094631,8.2617,168.82,168.81,60.0]
[1717085095243,6.07,168.82,168.81,60.0]
[1717085096146,8.2616,168.82,168.81,60.0]
[1717085099034,6.07,168.82,168.81,60.0]
[1717085099337,8.2616,168.82,168.81,60.0]
[1717085103554,8.2616,168.82,168.62,41.3194957]
[1717085103555,4.3815,168.89,168.87,60.0]
[1717085103858,32.5409,168.88,168.87,60.0]
[1717085104718,2.1911,168.86,168.85,60.0]
[1717085104949,8.2611,168.86,168.85,60.0]
[1717085106119,2.1911,168.86,168.85,60.0]
[1717085106320,8.2611,168.86,168.85,60.0]
[1717085106520,2.1912,168.85,168.83,60.0]
[1717085106735,24.28,168.88,168.83,60.0]
[1717085106736,8.2614,168.84,168.83,60.0]
[1717085106939,8.2614,168.84,168.81,60.0]
[1717085107122,2.1918,168.81,168.79,60.0]
[1717085107326,6.07,168.8,168.79,60.0]
[1717085107619,6.07,168.8,168.79,62.192]
[1717085107819,2.1915,168.84,168.82,60.0]
[1717085108048,6.07,168.83,168.82,60.0]
[1717085108739,2.1911,168.86,168.85,60.0]
[1717085109041,8.2611,168.86,168.85,60.0]
[1717085112737,2.191,168.87,168.85,60.0]
[1717085112952,6.07,168.86,168.85,60.0]
[1717085114842,2.1908,168.89,168.87,60.0]
[1717085115050,8.2609,168.88,168.87,60.0]
[1717085115242,14.3309,168.88,168.87,60.0]
[1717085115929,12.14,168.88,168.85,60.0]
[1717085116159,8.2611,168.86,168.85,60.0]
[1717085117225,6.07,168.86,168.85,60.0]
[1717085117864,2.1914,168.85,168.81,60.0]
[1717085118163,6.07,168.82,168.81,60.0]
[1717085119943,2.1914,168.84,168.83,60.0]
[1717085120145,8.2614,168.84,168.83,60.0]
[1717085120445,10.9546,168.88,168.83,60.0]
[1717085120638,6.07,168.84,168.83,60.0]
[1717085120946,8.2614,168.84,168.81,60.0]
[1717085121155,6.07,168.82,168.81,60.0]
[1717085122051,2.1914,168.84,168.81,60.0]
[1717085122253,2.1914,168.84,168.83,60.0]
[1717085122453,8.2614,168.84,168.83,60.0]
[1717085123660,6.07,168.84,168.83,60.0]
[1717085124234,8.2614,168.84,168.83,60.0]
[1717085124645,6.07,168.84,168.83,60.0]
[1717085125041,2.1913,168.85,168.83,60.0]
[1717085125360,13.1459,168.88,168.85,60.0]
[1717085125361,2.1911,168.86,168.85,60.0]
[1717085125561,8.2611,168.86,168.85,60.0]
[1717085126558,26.4709,168.88,168.87,60.0]
[1717085126733,32.5409,168.88,168.87,60.0]
[1717085127951,2.1909,168.88,168.87,60.0]
[1717085128166,4.3812,168.91,168.89,60.0]
[1717085128349,8.2606,168.9,168.89,60.0]
[1717085128742,4.3805,168.93,168.89,60.0]
[1717085128968,6.07,168.9,168.89,60.0]
[1717085129470,8.2606,168.9,168.89,60.0]
[1717085131161,6.07,168.9,168.89,60.0]
[1717085131563,8.2606,168.9,168.89,60.0]
[1717085133062,2.1909,168.88,168.87,60.0]
[1717085133372,12.14,168.88,168.87,60.0]
[1717085133659,14.3309,168.88,168.87,60.0]
[1717085133868,12.14,168.88,168.87,60.0]
[1717085134053,14.3309,168.88,168.87,60.0]
[1717085135141,12.14,168.88,168.87,60.0]
[1717085135555,14.3309,168.88,168.87,60.0]
[1717085135747,14.3309,168.88,168.85,60.0]
[1717085135949,6.07,168.86,168.85,60.0]
[1717085136163,8.2611,168.86,168.83,60.0]
[1717085136362,6.07,168.84,168.83,60.0]
[1717085140364,8.2611,168.86,168.85,60.0]
[1717085145850,2.1911,168.86,168.85,60.0]
[1717085146049,8.2611,168.86,168.85,60.0]
[1717085149273,2.1914,168.84,168.83,60.0]
[1717085149775,8.2614,168.84,168.83,60.0]
[1717085149973,2.1922,168.78,168.77,60.0]
[1717085150174,2.1925,168.75,168.74,60.0]
[1717085150486,8.0226,168.75,168.74,60.0]
[1717085150647,2.1927,168.74,168.71,60.0]
[1717085150855,6.07,168.72,168.71,60.0]
[1717085151068,12.14,168.72,168.7,60.0]
[1717085151279,6.07,168.71,168.68,60.0]
[1717085151478,6.07,168.69,168.64,2.1939]
[1717085151648,6.07,168.65,168.63,8.8602975]
[1717085151854,6.07,168.64,168.63,8.8602975]
[1717085152053,6.07,168.64,168.63,77.86]
[1717085152454,6.07,168.64,168.63,80.0541]
[1717085153261,28.6661,168.72,168.65,60.0]
[1717085153468,6.07,168.66,168.65,60.0]
[1717085153969,2.1934,168.69,168.68,60.0]
[1717085154272,2.1934,168.69,168.65,60.0]
[1717085154688,20.4432,168.7,168.68,60.0]
[1717085156263,18.25,168.7,168.68,60.0]
[1717085156458,2.1925,168.76,168.72,60.0]
[1717085156680,4.384,168.8,168.74,60.0]
[1717085156984,2.1923,168.78,168.76,60.0]
[1717085157194,18.25,168.79,168.72,60.0]
[1717085157358,2.1925,168.76,168.72,60.0]
[1717085157560,2.1925,168.76,168.74,60.0]
[1717085157963,2.1925,168.76,168.72,60.0]
[1717085158171,18.25,168.79,168.72,60.0]
[1717085158380,2.1927,168.74,168.72,60.0]
[1717085158581,2.1927,168.74,168.71,60.0]
[1717085159088,2.1926,168.75,168.71,60.0]
[1717085159459,4.3844,168.78,168.71,60.0]
[1717085159766,18.25,168.76,168.71,60.0]
[1717085159968,2.193,168.72,168.69,60.0]
[1717085160165,18.25,168.73,168.65,2.1938]
[1717085160367,2.1931,168.71,168.66,2.1937]
[1717085160569,2.1935,168.69,168.65,60.0]
[1717085160775,18.25,168.7,168.65,60.0]
[1717085161181,2.1934,168.69,168.65,60.0]
[1717085161387,2.1935,168.68,168.63,60.0]
[1717085161564,2.1936,168.67,168.62,2.1942]
[1717085161980,2.1935,168.68,168.62,62.1942]
[1717085162176,18.25,168.7,168.62,60.0]
[1717085162365,20.4437,168.67,168.61,62.1943]
[1717085162684,20.4437,168.67,168.62,62.1942]
[1717085162987,2.1935,168.68,168.66,60.0]
[1717085163191,2.1935,168.68,168.59,4.3891]
[1717085163192,2.1936,168.67,168.62,2.1942]
[1717085163499,2.1937,168.66,168.62,60.0]
[1717085163792,2.1936,168.67,168.62,60.0]
[1717085164167,2.1939,168.65,168.61,60.0]
[1717085164362,20.4439,168.65,168.6,60.0]
[1717085164792,2.194,168.64,168.6,60.0]
[1717085165160,20.4439,168.65,168.6,60.0]
[1717085165364,20.4439,168.65,168.6,62.1945]
[1717085166287,18.25,168.65,168.6,62.1945]
[1717085166490,18.25,168.65,168.62,60.0]
[1717085167414,18.25,168.65,168.6,62.1945]
[1717085168385,18.25,168.65,168.62,60.0]
[1717085169561,18.25,168.65,168.64,60.0]
[1717085169779,2.1936,168.67,168.64,60.0]
[1717085170205,18.25,168.68,168.64,60.0]
[1717085170206,2.1937,168.66,168.64,60.0]
[1717085170497,29.03959865,168.96,168.72,60.0]
[1717085170668,29.03959865,168.96,168.57,380.3]
[1717085170669,2.1924,168.77,168.75,60.0]
[1717085171486,2.1922,168.78,168.75,60.0]
[1717085171886,2.1923,168.77,168.75,60.0]
[1717085172992,2.1922,168.78,168.77,60.0]
[1717085173283,2.1922,168.78,168.75,60.0]
[1717085174199,2.1923,168.77,168.75,60.0]
[1717085175387,2.1926,168.75,168.73,60.0]
[1717085175584,2.1924,168.76,168.75,60.0]
[1717085175783,2.1921,168.79,168.77,60.0]
[1717085175987,2.1922,168.78,168.77,60.0]
[1717085176493,2.1919,168.8,168.77,60.0]
[1717085176794,2.1918,168.81,168.79,60.0]
[1717085177292,2.1917,168.82,168.81,60.0]
[1717085178185,2.1915,168.84,168.83,60.0]
[1717085178685,6.1169607,168.93,168.9,60.0]
[1717085178885,2.1905,168.91,168.9,60.0]
[1717085179088,6.5698,168.96,168.9,60.0]
[1717085179089,18.25,168.96,168.9,60.0]
[1717085179268,2.1903,168.92,168.9,60.0]
[1717085179663,2.1902,168.94,168.92,60.0]
[1717085181798,4.38,168.95,168.86,60.0]
[1717085181967,2.1909,168.88,168.86,60.0]
[1717085182428,2.1909,168.88,168.79,4.3839]
[1717085182429,2.1906,168.9,168.88,60.0]
[1717085182771,2.1907,168.89,168.86,60.0]
[1717085183371,31.56339547,168.98,168.94,60.0]
[1717085183372,2.1897,168.98,168.94,60.0]
[1717085183576,2.1897,168.98,168.96,60.0]
[1717085184175,2.1894,168.99,168.98,60.0]
[1717085184779,12.68789129,169.0,168.98,60.0]
[1717085185096,2.1894,168.99,168.98,60.0]
[1717085185278,10.49859129,169.0,168.98,60.0]
[1717085185777,12.68789129,169.0,168.98,60.0]
[1717085186194,12.68789129,169.0,168.96,60.0]
[1717085186403,10.49859129,169.0,168.96,60.0]
[1717085186600,2.1895,168.99,168.98,60.0]
[1717085186881,2.1895,168.99,168.96,60.0]
[1717085187386,12.68789129,169.0,168.98,60.0]
[1717085188797,2.1894,168.99,168.98,60.0]
[1717085188986,2.1894,168.99,168.96,60.0]
[1717085189922,12.68789129,169.0,168.96,60.0]
[1717085190291,12.68789129,169.0,168.99,60.0]
[1717085190486,10.49859129,169.0,168.99,60.0]
[1717085194495,10.49859129,169.0,168.99,62.1894]
[1717085195016,10.49859129,169.0,168.99,60.0]
[1717085196921,10.49859129,169.0,168.99,62.1894]
[1717085198523,10.49859129,169.0,168.99,60.0]
[1717085203317,10.49859129,169.0,168.94,60.0]
[1717085203634,2.1897,168.97,168.94,60.0]
[1717085203939,2.1896,168.98,168.96,60.0]
[1717085204100,20.3595,168.99,168.96,60.0]
[1717085204426,2.1895,168.99,168.98,60.0]
[1717085204629,2.1896,168.98,168.96,60.0]
[1717085205307,10.49859129,169.0,168.96,60.0]
[1717085207706,12.68799129,169.0,168.98,60.0]
[1717085210428,2.1894,168.99,168.98,60.0]
[1717085211131,12.68799129,169.0,168.98,60.0]
[1717085214710,10.49859129,169.0,168.98,60.0]
[1717085214907,10.49859129,169.0,168.98,62.1895]
[1717085215120,10.49859129,169.0,168.98,80.0495]
[1717085215326,10.49859129,169.0,168.99,45.0]
[1717085216512,10.49859129,169.0,168.98,60.0]
[1717085216707,12.68789129,169.0,168.98,60.0]
[1717085217133,10.49859129,169.0,168.98,60.0]
[1717085218835,10.49859129,169.0,168.98,62.1896]
[1717085220226,10.49859129,169.0,168.98,60.0]
[1717085220615,12.68799129,169.0,168.98,60.0]
[1717085221542,10.49859129,169.0,168.98,60.0]
[1717085222050,12.68799129,169.0,168.96,62.1898]
[1717085222216,10.49859129,169.0,168.96,60.0]
[1717085222556,2.1895,168.99,168.96,60.0]
[1717085222756,2.1896,168.98,168.96,60.0]
[1717085223113,2.1895,168.99,168.95,2.1899]
[1717085223317,10.49859129,169.0,168.95,60.0]
[1717085223627,2.1897,168.97,168.95,60.0]
[1717085224232,10.49859129,169.0,168.99,77.86]
[1717085224443,10.49859129,169.0,168.99,125.0494]
[1717085224754,10.49859129,169.0,168.99,62.1894]
[1717085225358,10.49859129,169.0,168.99,60.0]
[1717085227923,10.49859129,169.0,168.99,62.1894]
[1717085228337,10.49859129,169.0,168.99,60.0]
[1717085228522,10.49859129,169.0,168.99,62.1894]
[1717085230452,10.49859129,169.0,168.99,80.0494]
[1717085231442,10.49859129,169.0,168.99,62.1894]
[1717085231749,10.49859129,169.0,168.99,60.0]
[1717085231926,12.68789129,169.0,168.97,60.0]
[1717085232254,10.49859129,169.0,168.99,60.0]
[1717085233253,2.1894,168.99,168.97,60.0]
[1717085233558,10.49859129,169.0,168.97,62.1897]
[1717085233756,12.68799129,169.0,168.97,60.0]
[1717085234125,10.49859129,169.0,168.99,60.0]
[1717085234445,10.49859129,169.0,168.99,80.0494]
[1717085235431,10.49859129,169.0,168.99,88.86626789]
[1717085235853,10.49859129,169.0,168.99,120.0983]
[1717085236146,10.49859129,169.0,168.99,135.4246]
[1717085236340,10.49859129,169.0,168.99,143.57479538]
[1717085236540,0.8234774,169.1,169.09,60.0]
[1717085237130,0.8234774,169.1,169.09,77.86]
[1717085237331,0.8234774,169.1,169.09,80.0481]
[1717085237766,0.8234774,169.1,169.09,77.86]
[1717085242847,0.8234774,169.1,169.09,60.0]
[1717085246162,0.8234774,169.1,169.09,77.86]